Workbook

Sheet стандарт
D4: КАЛЬКУЛЯТОР
D5: Обрані Споживачем умови кредитування
B7: Кредит видається на: | D7: Під заставу майнових прав на депозит
B8: Дата надання кредиту | D8: =TODAY() -> 2025-12-18
B9: Сума кредиту,грн.: | D9: 200000 | E9: гривень
B10: Забезпечення | D10: 240000 | E10: гривень | M10: Заповнюється Клієнтом
B11: Строк користування кредитом (в місяцях): | D11: 18
B12: Погашення основної суми кредиту: щомісяця
B13: Погашення процентів: щомісяця
A14: =ROUND(D9/D11,2) -> 11111.11 | B14: Номінальна процентна ставка: | D14: =I15 -> 0.187 | E14: річних | F14: =D14 -> 0.187 | I14: =F14/12 -> 0.01558333333
B15: Номінальна процентна ставка, % річних | D15: 0.187 | E15: Маржа | F15: 0 | G15: Номінальна процентна ставка визначається Банком , як процентна ставка за депозитом (вкладом) + маржа) | I15: =D15+F15 -> 0.187 | J15: річних | L15: Для кредитів і банківських вкладів, валюти яких відрізняються, сума кредиту розраховується за курсом НБУ на дату звернення споживача з оформленням відповідної заяви
B16: Супутні витрати позичальника:
A17: =DATE(YEAR(B40),MONTH(B40)+1,DAY(B40)) -> 2026-01-18 | B17: комісія за надання кредиту (разова): | D17: 0.005 | E17: від основної суми кредиту/ Всього: | G17: =D17*D9 -> 1000 | I17: гривень
B18: обслуговування кредитної заборгованості: | D18: 0 | E18: на місяць від основної суми кредиту: | G18: =D18*D9 -> 0 | I18: гривень
B19: надання витягів/внесення запису(ів) до Державного реєстру обтяжень рухомого майна | G19: 2500 | I19: гривень
B20: страхування НВ: | D20: 0 | E20: на рік від основної суми кредиту: | G20: =D20*D9 -> 0 | I20: гривень
B21: страхування майна: | D21: 0 | E21: на рік від залогової вартості: | G21: =D10*D21 -> 0 | I21: гривень
B22: послуги нотаріуса: | G22: 0 | I22: гривень
B23: державні збори | E23: фіксована сума (одноразово) | G23: 0 | I23: гривень
B24: інші послуги третіх осіб | E24: фіксована сума (одноразово) | G24: 0 | I24: гривень
B25: інші послуги банку | G25: 0 | I25: гривень
B26: комісійний збір кредитного посередника | D26: 0 | E26: від суми кредиту (одноразово) | G26: =D9*D26 -> 0 | I26: гривень
B27: оцінка майна: | E27: фіксована сума (одноразово) | G27: 0 | I27: гривень
B28: інша плата за послуги кредитного посередника | G28: 0 | I28: гривень
B29: ВСЬОГО | G29: =SUM(G17:G28) -> 3500 | I29: гривень
F31: =PMT(F14/12,E11,-D9) ->  | G31: =IPMT(F14/12,1,24,-D9) -> 3116.666667
D32: Розрахунок загальної вартості споживчого кредиту та реальної процентної ставки
B34: Дата видачі кредиту/дата платежу | C34: Чиста сума кредиту/сума платежу за розрахунковий період, грн. | D34: Види платежів за кредитом | U34: Орієнтовна реальна річна процентна ставка, % | V34: пепеплата
D35: сума кредиту за договором | E35: проценти за користування кредитом | F35: платежі за додаткові та/або супутні послуги
F36: банку | K36: третіх осіб | R36: кредитного посередника(за наявності)
F37: обслуговування кредитної заборгованості | G37: надання витягів/внесення запису(ів) до Державного реєстру обтяжень рухомого майна | H37: розрахунково-касове обслуговування | I37: комісія за надання кредиту | J37: інші послуги банку | K37: страхування НВ | L37: послугами нотаріусів | M37: страхування майна | N37: оцінка майна | O37: держані збори | P37: інші послуги третіх осіб | R37: комісійний збір кредитного посередника | T37: інша плата за послуги кредитного посередника
B38: 1 | C38: 2 | D38: 3 | E38: 4 | F38: 5 | G38: 6 | I38: 7 | J38: 8 | K38: 9 | L38: 10 | M38: 11 | N38: 12 | O38: 13 | P38: 14 | R38: 15 | T38: 16 | U38: 17 | V38: 18
W39: остаток
A40: e | B40: =D8 -> 2025-12-18 | C40: =-(D40-SUM(F40:T40)) -> -196500 | D40: =D9 -> 200000 | E40: х | F40: =$G$18 -> 0 | G40: =G19 -> 2500 | I40: =G17 -> 1000 | J40: =G25 -> 0 | K40: =IF(X40="страховка",$G$20,0) -> 0 | L40: =G22 -> 0 | M40: =IF(X40="страховка",$G$21,0) -> 0 | N40: =G27 -> 0 | O40: =G23 -> 0 | P40: =G24 -> 0 | R40: =G26 -> 0 | T40: =G28 -> 0 | U40: х | V40: х | W40: 200000 | X40: =IF(MONTH($B$40)-MONTH(B40)=0,"страховка","нет") -> страховка
A41: e | B41: =DATE(YEAR(B40),MONTH(B40)+1,DAY(B40)) -> 2026-01-18 | C41: =SUM(D41:V41) -> 14331.66556 | D41: =$A$14 -> 11111.11 | E41: =W40*$D$14/360*Y41 -> 3220.555556 | F41: 0 | K41: =IF(X41="страховка",$G$20,0) -> 0 | M41: =IF(X41="страховка",$G$21,0) -> 0 | W41: =W40-D41 -> 188888.89 | X41: =IF(MONTH($B$40)-MONTH(B41)=0,"страховка","нет") -> нет | Y41: =B41-B40 -> 31
A42: e | B42: =DATE(YEAR(B41),MONTH(B41)+1,DAY(B41)) -> 2026-02-18 | C42: =SUM(D42:V42) -> 14152.74582 | D42: =$A$14 -> 11111.11 | E42: =W41*$D$14/360*Y42 -> 3041.63582 | F42: 0 | K42: 0 | M42: 0 | W42: =W41-D42 -> 177777.78 | X42: нет | Y42: =B42-B41 -> 31
A43: e | B43: 2026-03-18 | C43: 13696.78904 | D43: 11111.11 | E43: 2585.679045 | F43: 0 | K43: 0 | M43: 0 | W43: 166666.67 | X43: нет | Y43: 28
A44: e | B44: 2026-04-18 | C44: 13794.90635 | D44: 11111.11 | E44: 2683.79635 | F44: 0 | K44: 0 | M44: 0 | W44: 155555.56 | X44: нет | Y44: 31
A45: e | B45: 2026-05-18 | C45: 13535.18414 | D45: 11111.11 | E45: 2424.074143 | F45: 0 | K45: 0 | M45: 0 | W45: 144444.45 | X45: нет | Y45: 30
A46: e | B46: 2026-06-18 | C46: 13437.06688 | D46: 11111.11 | E46: 2325.95688 | F46: 0 | K46: 0 | M46: 0 | W46: 133333.34 | X46: нет | Y46: 31
A47: e | B47: 2026-07-18 | C47: 13188.88788 | D47: 11111.11 | E47: 2077.777882 | F47: 0 | K47: 0 | M47: 0 | W47: 122222.23 | X47: нет | Y47: 30
A48: e | B48: 2026-08-18 | C48: 13079.22741 | D48: 11111.11 | E48: 1968.117409 | F48: 0 | K48: 0 | M48: 0 | W48: 111111.12 | X48: нет | Y48: 31
A49: e | B49: 2026-09-18 | C49: 12900.30767 | D49: 11111.11 | E49: 1789.197674 | F49: 0 | K49: 0 | M49: 0 | W49: 100000.01 | X49: нет | Y49: 31
A50: e | B50: 2026-10-18 | C50: 12669.44349 | D50: 11111.11 | E50: 1558.333489 | F50: 0 | K50: 0 | M50: 0 | W50: 88888.9 | X50: нет | Y50: 30
A51: e | B51: 2026-11-18 | C51: 12542.4682 | D51: 11111.11 | E51: 1431.358204 | F51: 0 | K51: 0 | M51: 0 | W51: 77777.79 | X51: нет | Y51: 31
A52: e | B52: 2026-12-18 | C52: 12323.14723 | D52: 11111.11 | E52: 1212.037228 | F52: 0 | K52: 0 | M52: 0 | W52: 66666.68 | X52: страховка | Y52: 30
A53: e | B53: 2027-01-18 | C53: 12184.62873 | D53: 11111.11 | E53: 1073.518733 | F53: 0 | K53: 0 | M53: 0 | W53: 55555.57 | X53: нет | Y53: 31
A54: e | B54: 2027-02-18 | C54: 12005.709 | D54: 11111.11 | E54: 894.598998 | F54: 0 | K54: 0 | M54: 0 | W54: 44444.46 | X54: нет | Y54: 31
A55: e | B55: 2027-03-18 | C55: 11757.52998 | D55: 11111.11 | E55: 646.4199793 | F55: 0 | K55: 0 | M55: 0 | W55: 33333.35 | X55: нет | Y55: 28
A56: e | B56: 2027-04-18 | C56: 11647.86953 | D56: 11111.11 | E56: 536.7595276 | F56: 0 | K56: 0 | M56: 0 | W56: 22222.24 | X56: нет | Y56: 31
A57: e | B57: 2027-05-18 | C57: 11457.40657 | D57: 11111.11 | E57: 346.2965733 | F57: 0 | K57: 0 | M57: 0 | W57: 11111.13 | X57: нет | Y57: 30
A58: e | B58: 2027-06-18 | C58: 11290.03006 | D58: 11111.11 | E58: 178.9200573 | F58: 0 | W58: 0.02000000008 | Y58: 31
B59: Усього | C59: 229995.0135 | D59: 199999.98 | E59: 29995.03355 | F59: 0 | G59: 2500 | H59: 0 | I59: 1000 | J59: 0 | K59: 0 | L59: 0 | M59: 0 | N59: 0 | O59: 0 | P59: 0 | Q59: 0 | R59: 0 | S59: 0 | T59: 0 | U59: =XIRR(C40:C58,B40:B58) -> 0.2367973387 | V59: 33495.01355
B61: Загальні витрати за кредитом( проценти за користування кредитом, комісії та інші обовязкові платежі за додаткові та/або супутні послуги кредитодавця, кредитного посередника (за наявності) та третіх осіб, повязані з отриманням, обслуговуванням та поверненням кредиту), грн з них: | J61: =V59 -> 33495.01355
B62: - Платежі за додаткові та/або супутні послуги кредитодавця, повязані з отриманням, обслуговуванням та поверненням кредиту), грн | J62: =E59+F59+G59+I59+J59 -> 33495.03355
B63: - Платежі за додаткові та/або супутні послуги третіх осіб, повязані з отриманням, обслуговуванням та поверненням кредиту), грн | J63: =K59+L59+M59+N59+O59+P59+R59+T59 -> 0
B64: Орієнтовна загальна вартість кредиту для споживача за весь строк користування кредитом ( у т.ч. тіло кредиту, відсотки, комісії та інші платежі), грн. | J64: =J61+D9 -> 233495.0135
B65: Орієнтовна реальна річна процентна ставка, % річних | J65: =U59 -> 0.2367973387
B66: Застереження: Розрахунок загальної вартості Кредиту і реальної процентної ставки носить інформативний характер для Позичальника і визначено станом на дату укладання Кредитного договору. При здійсненні розрахунку загальної вартості Кредиту і реальної процентної ставки Кредитор враховував вартість додаткових та/або супутніх послуг третіх осіб, послуги кредитного посередника ( за наявності). В розрахунок загальної вартості Кредиту і реальної процентної ставки не включались умовні платежі Позичальника по Договору (пені, штрафи, які встановлюються згідно з Договором).
B67: Наведені обчислення реальної річної процентної ставки та орієнтовної загальної вартості кредиту для споживача є репрезентативними та базуються на обраних споживачем умовах кредитування, викладених вище, і на припущенні, що договір про споживчий кредит залишатиметься дійсним протягом погодженого строку, а кредитодавець і споживач виконають свої обов’язки на умовах та у строки, визначені в договорі. Реальна річна процентна ставка обчислена на основі припущення, що процентна ставка та інші платежі за послуги кредитодавця залишатимуться незмінними та застосовуватимуться протягом строку дії договору про споживчий кредит. Застереження: використання інших способів надання кредиту та/або зміна інших вищезазначених умов кредитування можуть мати наслідком застосування іншої реальної річної процентної ставки та орієнтовної загальної вартості кредиту для споживача. Орієнтовна реальна річна процентна ставка обчислена з використанням фінансової функції ЧИСТВНДОХ програмного продукту Microsoft Excel.
B68: Позичальник не сплачує Кредитору комісійних винагород за платіжне обслуговування, що пов‘язані з погашенням Кредиту та процентів за ним Позичальником у готівковій чи безготівковій формі через установи Кредитора. У випадку погашення Позичальником Кредиту та процентів за ним не через установи Кредитора Позичальник буде сплачувати послуги інших банків згідно з тарифами, які діятимуть в таких банках на момент здійснення платіжного обслуговування Позичальника.

Sheet ануїтет
D4: КАЛЬКУЛЯТОР
D5: Обрані Споживачем умови кредитування
B7: Кредит видається на:
B8: Дата надання кредиту | D8: =TODAY() -> 2025-12-18 | L8: Заповнюється Клієнтом
B9: Сума кредиту,грн.: | D9: 200000 | E9: гривень
B10: Забезпечення | D10: 240000 | E10: гривень
B11: Строк користування кредитом (в місяцях): | D11: 18
B12: Погашення основної суми кредиту: щомісяця
B13: Погашення процентів: щомісяця
A14: =ROUND(D9/D11,2) -> 11111.11 | B14: Номінальна процентна ставка: | D14: =I15 -> 0.187 | E14: річних | F14: =D14 -> 0.187 | I14: =F14/12 -> 0.01558333333
B15: Номінальна процентна ставка, % річних | D15: 0.187 | E15: Маржа | F15: 0 | G15: Номінальна процентна ставка визначається Банком , як процентна ставка за депозитом (вкладом) + маржа) | I15: =D15+F15 -> 0.187 | J15: річних | K15: Для кредитів і банківських вкладів, валюти яких відрізняються, сума кредиту розраховується за курсом НБУ на дату звернення споживача з оформленням відповідної заяви
B16: Супутні витрати позичальника:
A17: =DATE(YEAR(B40),MONTH(B40)+1,DAY(B40)) -> 2026-01-18 | B17: комісія за надання кредиту (разова): | D17: 0.005 | E17: від основної суми кредиту. Всього: | G17: =D17*D9 -> 1000 | I17: гривень
B18: обслуговування кредитної заборгованості: | D18: 0 | E18: на місяць від основної суми кредиту: | G18: =D18*D9 -> 0 | I18: гривень
B19: надання витягів/внесення запису(ів) до Державного реєстру обтяжень рухомого майна | G19: 2500 | I19: гривень
B20: страхування НВ: | D20: 0 | E20: на рік від основної суми кредиту: | G20: =D20*D9 -> 0 | I20: гривень
B21: страхування майна: | D21: 0 | E21: на рік від залогової вартості: | G21: =D10*D21 -> 0 | I21: гривень
B22: послуги нотаріуса: | G22: 0 | I22: гривень
B23: державні збори | E23: фіксована сума (одноразово) | G23: 0 | I23: гривень
B24: інші послуги третіх осіб | G24: 0 | I24: гривень
B25: інші послуги банку | G25: 0 | I25: гривень
B26: комісійний збір кредитного посередника | D26: 0 | E26: від суми кредиту (одноразово) | G26: =D9*D26 -> 0 | I26: гривень
B27: оцінка майна: | E27: фіксована сума (одноразово) | G27: 0 | I27: гривень
B28: інша плата за послуги кредитного посередника | G28: 0 | I28: гривень
B29: ВСЬОГО | G29: =SUM(G17:G28) -> 3500 | I29: гривень
F31: =PMT(F14/12,E11,-D9) ->  | G31: =IPMT(F14/12,1,24,-D9) -> 3116.666667
D32: Розрахунок загальної вартості споживчого кредиту та реальної процентної ставки
B34: Дата видачі кредиту/дата платежу | C34: Чиста сума кредиту/сума платежу за розрахунковий період, грн. | D34: Види платежів за кредитом | U34: Реальна процентна ставка, % | V34: Абсолютне значення подорожчання кредиту, грн.
D35: сума кредиту за договором | E35: проценти за користування кредитом | F35: платежі за додаткові та/або супутні послуги
F36: банку | K36: третіх осіб | R36: кредитного посередника(за наявності)
F37: обслуговування кредитної заборгованості | G37: надання витягів/внесення запису(ів) до Державного реєстру обтяжень рухомого майна | I37: комісія за надання кредиту | J37: інші послуги банку | K37: страхуванням НВ | L37: послугами нотаріусів | M37: страхування майна: | N37: оцінка майна | O37: державні збори | P37: інші послуги третіх осіб | R37: комісійний збір кредитного посередника | T37: інша плата за послуги кредитного посередника
B38: 1 | C38: 2 | D38: 3 | E38: 4 | F38: 5 | G38: 6 | I38: 7 | J38: 8 | K38: 9 | L38: 10 | M38: 11 | N38: 12 | O38: 13 | P38: 14 | R38: 15 | T38: 16 | U38: 17 | V38: 18
W39: остаток | Z39: ан платеж
A40: e | B40: =D8 -> 2025-12-18 | C40: =-(D40-SUM(F40:T40)) -> -196500 | D40: =D9 -> 200000 | E40: х | F40: =$G$18 -> 0 | G40: =G19 -> 2500 | I40: =G17 -> 1000 | J40: =G25 -> 0 | K40: =IF(X40="страховка",$G$20,0) -> 0 | L40: =G22 -> 0 | M40: =IF(X40="страховка",$G$21,0) -> 0 | N40: =G27 -> 0 | O40: =G23 -> 0 | P40: =G24 -> 0 | R40: =G26 -> 0 | T40: =G28 -> 0 | U40: х | V40: х | W40: 200000 | X40: =IF(MONTH($B$40)-MONTH(B40)=0,"страховка","нет") -> страховка | AB40: =(D9*D14/12)/(1-(1/(1+D14/12)^D11)) -> 12827.99251
A41: e | B41: =DATE(YEAR(B40),MONTH(B40)+1,DAY(B40)) -> 2026-01-18 | C41: =SUM(D41:V41) -> 12827.99251 | D41: =Z41-E41 -> 9711.325839 | E41: =W40*$D$14/12 -> 3116.666667 | F41: =$G$18 -> 0 | K41: =IF(X41="страховка",$G$20,0) -> 0 | M41: =IF(X41="страховка",$G$21,0) -> 0 | W41: =W40-D41 -> 190288.6742 | X41: =IF(MONTH($B$40)-MONTH(B41)=0,"страховка","нет") -> нет | Y41: =B41-B40 -> 31 | Z41: =PMT($D$14/12,$D$11,-$D$9) -> 12827.99251
A42: e | B42: =DATE(YEAR(B41),MONTH(B41)+1,DAY(B41)) -> 2026-02-18 | C42: =SUM(D42:V42) -> 12827.99251 | D42: =Z42-E42 -> 9862.660667 | E42: =W41*$D$14/12 -> 2965.331839 | F42: 0 | K42: 0 | M42: 0 | W42: =W41-D42 -> 180426.0135 | X42: нет | Y42: =B42-B41 -> 31 | Z42: =PMT($D$14/12,$D$11,-$D$9) -> 12827.99251
A43: e | B43: 2026-03-18 | C43: 12827.99251 | D43: 10016.3538 | E43: 2811.63871 | F43: 0 | K43: 0 | M43: 0 | W43: 170409.6597 | X43: нет | Y43: 28 | Z43: 12827.99251
A44: e | B44: 2026-04-18 | C44: 12827.99251 | D44: 10172.44198 | E44: 2655.55053 | F44: 0 | K44: 0 | M44: 0 | W44: 160237.2177 | X44: нет | Y44: 31 | Z44: 12827.99251
A45: e | B45: 2026-05-18 | C45: 12827.99251 | D45: 10330.96253 | E45: 2497.029976 | F45: 0 | K45: 0 | M45: 0 | W45: 149906.2552 | X45: нет | Y45: 30 | Z45: 12827.99251
A46: e | B46: 2026-06-18 | C46: 12827.99251 | D46: 10491.95336 | E46: 2336.039143 | F46: 0 | K46: 0 | M46: 0 | W46: 139414.3018 | X46: нет | Y46: 31 | Z46: 12827.99251
A47: e | B47: 2026-07-18 | C47: 12827.99251 | D47: 10655.45297 | E47: 2172.539537 | F47: 0 | K47: 0 | M47: 0 | W47: 128758.8489 | X47: нет | Y47: 30 | Z47: 12827.99251
A48: e | B48: 2026-08-18 | C48: 12827.99251 | D48: 10821.50044 | E48: 2006.492061 | F48: 0 | K48: 0 | M48: 0 | W48: 117937.3484 | X48: нет | Y48: 31 | Z48: 12827.99251
A49: e | B49: 2026-09-18 | C49: 12827.99251 | D49: 10990.13549 | E49: 1837.857013 | F49: 0 | K49: 0 | M49: 0 | W49: 106947.2129 | X49: нет | Y49: 31 | Z49: 12827.99251
A50: e | B50: 2026-10-18 | C50: 12827.99251 | D50: 11161.39844 | E50: 1666.594068 | F50: 0 | K50: 0 | M50: 0 | W50: 95785.81449 | X50: нет | Y50: 30 | Z50: 12827.99251
A51: e | B51: 2026-11-18 | C51: 12827.99251 | D51: 11335.33023 | E51: 1492.662276 | F51: 0 | K51: 0 | M51: 0 | W51: 84450.48426 | X51: нет | Y51: 31 | Z51: 12827.99251
A52: e | B52: 2026-12-18 | C52: 12827.99251 | D52: 11511.97246 | E52: 1316.020046 | F52: 0 | K52: 0 | M52: 0 | W52: 72938.5118 | X52: страховка | Y52: 30 | Z52: 12827.99251
A53: e | B53: 2027-01-18 | C53: 12827.99251 | D53: 11691.36736 | E53: 1136.625142 | F53: 0 | K53: 0 | M53: 0 | W53: 61247.14443 | X53: нет | Y53: 31 | Z53: 12827.99251
A54: e | B54: 2027-02-18 | C54: 12827.99251 | D54: 11873.55784 | E54: 954.4346674 | F54: 0 | K54: 0 | M54: 0 | W54: 49373.58659 | X54: нет | Y54: 31 | Z54: 12827.99251
A55: e | B55: 2027-03-18 | C55: 12827.99251 | D55: 12058.58745 | E55: 769.4050578 | F55: 0 | K55: 0 | M55: 0 | W55: 37314.99915 | X55: нет | Y55: 28 | Z55: 12827.99251
A56: e | B56: 2027-04-18 | C56: 12827.99251 | D56: 12246.50044 | E56: 581.49207 | F56: 0 | K56: 0 | M56: 0 | W56: 25068.49871 | X56: нет | Y56: 31 | Z56: 12827.99251
A57: e | B57: 2027-05-18 | C57: 12827.99251 | D57: 12437.34173 | E57: 390.6507716 | F57: 0 | K57: 0 | M57: 0 | W57: 12631.15698 | X57: нет | Y57: 30 | Z57: 12827.99251
A58: e | B58: 2027-06-18 | C58: 12827.99251 | D58: 12631.15698 | E58: 196.8355295 | F58: 0 | W58: 4.91127139e-11 | Y58: 31 | Z58: 12827.99251
B59: Усього | C59: 230903.8651 | D59: 200000 | E59: 30903.86511 | F59: 0 | G59: 2500 | H59: 0 | I59: 1000 | J59: 0 | K59: 0 | L59: 0 | M59: 0 | N59: 0 | O59: 0 | P59: 0 | Q59: 0 | R59: 0 | S59: 0 | T59: 0 | U59: =XIRR(C40:C58,B40:B58) -> 0.2325933397 | V59: 34403.86511
B61: Загальні витрати за кредитом( проценти за користування кредитом, комісії та інші обовязкові платежі за додаткові та/або супутні послуги кредитодавця, кредитного посередника (за наявності) та третіх осіб, повязані з отриманням, обслуговуванням та поверненням кредиту), грн з них: | J61: =V59 -> 34403.86511
B62: - Платежі за додаткові та/або супутні послуги кредитодавця, повязані з отриманням, обслуговуванням та поверненням кредиту), грн | J62: =E59+F59+G59+I59+J59 -> 34403.86511
B63: - Платежі за додаткові та/або супутні послуги третіх осіб, повязані з отриманням, обслуговуванням та поверненням кредиту), грн | J63: =K59+L59+M59+N59+O59+P59+R59+T59 -> 0
B64: Орієнтовна загальна вартість кредиту для споживача за весь строк користування кредитом ( у т.ч. тіло кредиту, відсотки, комісії та інші платежі), грн. | J64: =J61+D9 -> 234403.8651
B65: Орієнтовна реальна річна процентна ставка, % річних | J65: =U59 -> 0.2325933397
B66: Застереження: Розрахунок загальної вартості Кредиту і реальної процентної ставки носить інформативний характер для Позичальника і визначено станом на дату укладання Кредитного договору. При здійсненні розрахунку загальної вартості Кредиту і реальної процентної ставки Кредитор враховував вартість додаткових та/або супутніх послуг третіх осіб, послуги кредитного посередник ( за наявності). В розрахунок загальної вартості Кредиту і реальної процентної ставки не включались умовні платежі Позичальника по Договору (пені, штрафи, які встановлюються згідно з Договором).
B67: Наведені обчислення реальної річної процентної ставки та орієнтовної загальної вартості кредиту для споживача є репрезентативними та базуються на обраних споживачем умовах кредитування, викладених вище, і на припущенні, що договір про споживчий кредит залишатиметься дійсним протягом погодженого строку, а кредитодавець і споживач виконають свої обов’язки на умовах та у строки, визначені в договорі.Реальна річна процентна ставка обчислена на основі припущення, що процентна ставка та інші платежі за послуги кредитодавця залишатимуться незмінними та застосовуватимуться протягом строку дії договору про споживчий кредит. Застереження: використання інших способів надання кредиту та/або зміна інших вищезазначених умов кредитування можуть мати наслідком застосування іншої реальної річної процентної ставки та орієнтовної загальної вартості кредиту для споживача. Орієнтовна реальна річна процентна ставка обчислена з використанням фінансової функції ЧИСТВНДОХ програмного продукту Microsoft Excel.
B68: Позичальник не сплачує Кредитору комісійних винагород за платіжне обслуговування, що пов‘язані з погашенням Кредиту та процентів за ним Позичальником у готівковій чи безготівковій формі через установи Кредитора. У випадку погашення Позичальником Кредиту та процентів за ним не через установи Кредитора Позичальник буде сплачувати послуги інших банків згідно з тарифами, які діятимуть в таких банках на момент здійснення платіжного обслуговування Позичальника.

Sheet тіло в кінці строку
D4: КАЛЬКУЛЯТОР
D5: Обрані Споживачем умови кредитування
B7: Кредит видається на: | D7: Під заставу майнових прав на депозит
B8: Дата надання кредиту | D8: =TODAY() -> 2025-12-18 | E8: =EDATE(D8,D11) -> 2027-06-18
B9: Сума кредиту,грн.: | D9: 200000 | E9: гривень
B10: Забезпечення | D10: 240000 | E10: гривень | M10: Заповнюється Клієнтом
B11: Строк користування кредитом (в місяцях): | D11: 18
B12: Погашення основної суми кредиту: щомісяця
B13: Погашення процентів: щомісяця
A14: =ROUND(D9/D11,2) -> 11111.11 | B14: Номінальна процентна ставка: | D14: =I15 -> 0.3 | E14: річних | F14: =D14 -> 0.3 | I14: =F14/12 -> 0.025
B15: Номінальна процентна ставка, % річних | D15: 0.3 | E15: Маржа | F15: 0 | G15: Номінальна процентна ставка визначається Банком , як процентна ставка за депозитом (вкладом) + маржа) | I15: =D15+F15 -> 0.3 | J15: річних | L15: Для кредитів і банківських вкладів, валюти яких відрізняються, сума кредиту розраховується за курсом НБУ на дату звернення споживача з оформленням відповідної заяви
B16: Супутні витрати позичальника:
A17: =DATE(YEAR(B40),MONTH(B40)+1,DAY(B40)) -> 2026-01-18 | B17: комісія за надання кредиту (разова): | D17: 0.02 | E17: від основної суми кредиту/ Всього: | G17: =D17*D9 -> 4000 | I17: гривень
B18: обслуговування кредитної заборгованості: | D18: 0 | E18: на місяць від основної суми кредиту: | G18: =D18*D9 -> 0 | I18: гривень
B19: надання витягів/внесення запису(ів) до Державного реєстру обтяжень рухомого майна | E19: фіксована сума (одноразово) | G19: 500 | I19: гривень
B20: страхування НВ: | D20: 0 | E20: на рік від основної суми кредиту: | G20: =D20*D9 -> 0 | I20: гривень
B21: страхування майна: | D21: 0 | E21: на рік від залогової вартості: | G21: =D10*D21 -> 0 | I21: гривень
B22: послуги нотаріуса: | G22: 0 | I22: гривень
B23: державні збори | E23: фіксована сума (одноразово) | G23: 0 | I23: гривень
B24: інші послуги третіх осіб | E24: фіксована сума (одноразово) | G24: 0 | I24: гривень
B25: інші послуги банку | G25: 0 | I25: гривень
B26: комісійний збір кредитного посередника | D26: 0 | E26: від суми кредиту (одноразово) | G26: =D9*D26 -> 0 | I26: гривень
B27: оцінка майна: | E27: фіксована сума (одноразово) | G27: 0 | I27: гривень
B28: інша плата за послуги кредитного посередника | G28: 0 | I28: гривень
B29: ВСЬОГО | G29: =SUM(G17:G28) -> 4500 | I29: гривень
F31: =PMT(F14/12,E11,-D9) ->  | G31: =IPMT(F14/12,1,24,-D9) -> 5000
D32: Розрахунок загальної вартості споживчого кредиту та реальної процентної ставки
B34: Дата видачі кредиту/дата платежу | C34: Чиста сума кредиту/сума платежу за розрахунковий період, грн. | D34: Види платежів за кредитом | U34: Орієнтовна реальна річна процентна ставка, % | V34: пепеплата
D35: сума кредиту за договором | E35: проценти за користування кредитом | F35: платежі за додаткові та/або супутні послуги
F36: банку | K36: третіх осіб | R36: кредитного посередника(за наявності)
F37: обслуговування кредитної заборгованості | G37: надання витягів/внесення запису(ів) до Державного реєстру обтяжень рухомого майна | H37: розрахунково-касове обслуговування | I37: комісія за надання кредиту | J37: інші послуги банку | K37: страхування НВ | L37: послугами нотаріусів | M37: страхування майна | N37: оцінка майна | O37: державні збори | P37: інші послуги третіх осіб | R37: комісійний збір кредитного посередника | T37: інша плата за послуги кредитного посередника
B38: 1 | C38: 2 | D38: 3 | E38: 4 | F38: 5 | G38: 6 | I38: 7 | J38: 8 | K38: 9 | L38: 10 | M38: 11 | N38: 12 | O38: 13 | P38: 14 | R38: 15 | T38: 16 | U38: 17 | V38: 18
W39: остаток
A40: e | B40: =D8 -> 2025-12-18 | C40: =-(D40-SUM(F40:T40)) -> -195500 | D40: =D9 -> 200000 | E40: х | F40: =$G$18 -> 0 | G40: =G19 -> 500 | I40: =G17 -> 4000 | J40: =G25 -> 0 | K40: =IF(X40="страховка",$G$20,0) -> 0 | L40: =G22 -> 0 | M40: =IF(X40="страховка",$G$21,0) -> 0 | N40: =G27 -> 0 | O40: =G23 -> 0 | P40: =G24 -> 0 | R40: =G26 -> 0 | T40: =G28 -> 0 | U40: х | V40: х | W40: 200000 | X40: =IF(MONTH($B$40)-MONTH(B40)=0,"страховка","нет") -> страховка
A41: e | B41: =DATE(YEAR(B40),MONTH(B40)+1,DAY(B40)) -> 2026-01-18 | C41: =SUM(D41:V41) -> 5166.666667 | D41: =IF(B41=$E$8,$W$40,IF(B41<$E$8,0,"-")) -> 0 | E41: =IF(B41<=$E$8,$W$40*$D$14/360*Y41," - ") -> 5166.666667 | F41: 0 | K41: =IF(X41="страховка",$G$20,0) -> 0 | M41: =IF(X41="страховка",$G$21,0) -> 0 | W41: =W40-D41 -> 200000 | X41: =IF(MONTH($B$40)-MONTH(B41)=0,"страховка","нет") -> нет | Y41: =B41-B40 -> 31
A42: e | B42: =DATE(YEAR(B41),MONTH(B41)+1,DAY(B41)) -> 2026-02-18 | C42: =SUM(D42:V42) -> 5166.666667 | D42: =IF(B42=$E$8,$W$40,IF(B42<$E$8,0,"-")) -> 0 | E42: =IF(B42<=$E$8,$W$40*$D$14/360*Y42," - ") -> 5166.666667 | F42: 0 | K42: 0 | M42: 0 | W42: =W41-D42 -> 200000 | X42: нет | Y42: =B42-B41 -> 31
A43: e | B43: 2026-03-18 | C43: 4666.666667 | D43: 0 | E43: 4666.666667 | F43: 0 | K43: 0 | M43: 0 | W43: 200000 | X43: нет | Y43: 28
A44: e | B44: 2026-04-18 | C44: 5166.666667 | D44: 0 | E44: 5166.666667 | F44: 0 | K44: 0 | M44: 0 | W44: 200000 | X44: нет | Y44: 31
A45: e | B45: 2026-05-18 | C45: 5000 | D45: 0 | E45: 5000 | F45: 0 | K45: 0 | M45: 0 | W45: 200000 | X45: нет | Y45: 30
A46: e | B46: 2026-06-18 | C46: 5166.666667 | D46: 0 | E46: 5166.666667 | F46: 0 | K46: 0 | M46: 0 | W46: 200000 | X46: нет | Y46: 31
A47: e | B47: 2026-07-18 | C47: 5000 | D47: 0 | E47: 5000 | F47: 0 | K47: 0 | M47: 0 | W47: 200000 | X47: нет | Y47: 30
A48: e | B48: 2026-08-18 | C48: 5166.666667 | D48: 0 | E48: 5166.666667 | F48: 0 | K48: 0 | M48: 0 | W48: 200000 | X48: нет | Y48: 31
A49: e | B49: 2026-09-18 | C49: 5166.666667 | D49: 0 | E49: 5166.666667 | F49: 0 | K49: 0 | M49: 0 | W49: 200000 | X49: нет | Y49: 31
A50: e | B50: 2026-10-18 | C50: 5000 | D50: 0 | E50: 5000 | F50: 0 | K50: 0 | M50: 0 | W50: 200000 | X50: нет | Y50: 30
A51: e | B51: 2026-11-18 | C51: 5166.666667 | D51: 0 | E51: 5166.666667 | F51: 0 | K51: 0 | M51: 0 | W51: 200000 | X51: нет | Y51: 31
A52: e | B52: 2026-12-18 | C52: 5000 | D52: 0 | E52: 5000 | F52: 0 | K52: 0 | M52: 0 | W52: 200000 | X52: страховка | Y52: 30
A53: e | B53: 2027-01-18 | C53: 5166.666667 | D53: 0 | E53: 5166.666667 | F53: 0 | K53: 0 | M53: 0 | W53: 200000 | X53: нет | Y53: 31
A54: e | B54: 2027-02-18 | C54: 5166.666667 | D54: 0 | E54: 5166.666667 | F54: 0 | K54: 0 | M54: 0 | W54: 200000 | X54: нет | Y54: 31
A55: e | B55: 2027-03-18 | C55: 4666.666667 | D55: 0 | E55: 4666.666667 | F55: 0 | K55: 0 | M55: 0 | W55: 200000 | X55: нет | Y55: 28
A56: e | B56: 2027-04-18 | C56: 5166.666667 | D56: 0 | E56: 5166.666667 | F56: 0 | K56: 0 | M56: 0 | W56: 200000 | X56: нет | Y56: 31
A57: e | B57: 2027-05-18 | C57: 5000 | D57: 0 | E57: 5000 | F57: 0 | K57: 0 | M57: 0 | W57: 200000 | X57: нет | Y57: 30
A58: e | B58: 2027-06-18 | C58: 205166.6667 | D58: 200000 | E58: 5166.666667 | F58: 0 | W58: 0 | Y58: 31
B59: Усього | C59: 291166.6667 | D59: 200000 | E59: 91166.66667 | F59: 0 | G59: 500 | H59: 0 | I59: 4000 | J59: 0 | K59: 0 | L59: 0 | M59: 0 | N59: 0 | O59: 0 | P59: 0 | Q59: 0 | R59: 0 | S59: 0 | T59: 0 | U59: =XIRR(C40:C58,B40:B58) -> 0.3757907689 | V59: 95666.66667
B61: Загальні витрати за кредитом( проценти за користування кредитом, комісії та інші обовязкові платежі за додаткові та/або супутні послуги кредитодавця, кредитного посередника (за наявності) та третіх осіб, повязані з отриманням, обслуговуванням та поверненням кредиту), грн з них: | J61: =V59 -> 95666.66667
B62: - Платежі за додаткові та/або супутні послуги кредитодавця, повязані з отриманням, обслуговуванням та поверненням кредиту), грн | J62: =E59+F59+G59+I59+J59 -> 95666.66667
B63: - Платежі за додаткові та/або супутні послуги третіх осіб, повязані з отриманням, обслуговуванням та поверненням кредиту), грн | J63: =K59+L59+M59+N59+O59+P59+R59+T59 -> 0
B64: Орієнтовна загальна вартість кредиту для споживача за весь строк користування кредитом ( у т.ч. тіло кредиту, відсотки, комісії та інші платежі), грн. | J64: =J61+D9 -> 295666.6667
B65: Орієнтовна реальна річна процентна ставка, % річних | J65: =U59 -> 0.3757907689
B66: Застереження: Розрахунок загальної вартості Кредиту і реальної процентної ставки носить інформативний характер для Позичальника і визначено станом на дату укладання Кредитного договору. При здійсненні розрахунку загальної вартості Кредиту і реальної процентної ставки Кредитор враховував вартість додаткових та/або супутніх послуг третіх осіб, послуги кредитного посередник ( за наявності). В розрахунок загальної вартості Кредиту і реальної процентної ставки не включались умовні платежі Позичальника по Договору (пені, штрафи, які встановлюються згідно з Договором).
B67: Наведені обчислення реальної річної процентної ставки та орієнтовної загальної вартості кредиту для споживача є репрезентативними та базуються на обраних споживачем умовах кредитування, викладених вище, і на припущенні, що договір про споживчий кредит залишатиметься дійсним протягом погодженого строку, а кредитодавець і споживач виконають свої обов’язки на умовах та у строки, визначені в договорі. Реальна річна процентна ставка обчислена на основі припущення, що процентна ставка та інші платежі за послуги кредитодавця залишатимуться незмінними та застосовуватимуться протягом строку дії договору про споживчий кредит. Застереження: використання інших способів надання кредиту та/або зміна інших вищезазначених умов кредитування можуть мати наслідком застосування іншої реальної річної процентної ставки та орієнтовної загальної вартості кредиту для споживача. Орієнтовна реальна річна процентна ставка обчислена з використанням фінансової функції ЧИСТВНДОХ програмного продукту Microsoft Excel.
B68: Позичальник не сплачує Кредитору комісійних винагород за платіжне обслуговування, що пов‘язані з погашенням Кредиту та процентів за ним Позичальником у готівковій чи безготівковій формі через установи Кредитора. У випадку погашення Позичальником Кредиту та процентів за ним не через установи Кредитора Позичальник буде сплачувати послуги інших банків згідно з тарифами, які діятимуть в таких банках на момент здійснення платіжного обслуговування Позичальника.
